[Event "Titled Tuesday Blitz November 29 Early 2022"]
[White "Prithu Gupta"]
[Black "Jaskolka, Tomasz"]
[WhiteFideId "46618546"]
[BlackFideId "1170791"]
[WhiteElo "2344"]
[BlackElo "2126"]
[Result "0-1"]
[Round "04"]
[TimeControl "180+1"]
[Date "2022.11.30"]
[WhiteClock "0:00:03"]
[BlackClock "0:00:50"]

1. c4 {[%clk 0:03:00]}  c6 {[%clk 0:02:55]} 2. Nf3 {[%clk 0:02:59]}  d5 {[%clk 0:02:55]} 3. e3 {[%clk 0:02:59]}  Nf6 {[%clk 0:02:54]} 4. d4 {[%clk 0:02:59]}  a6 {[%clk 0:02:51]} 5. c5 {[%clk 0:02:58]}  Bf5 {[%clk 0:02:50]} 6. Nc3 {[%clk 0:02:57]}  e6 {[%clk 0:02:50]} 7. Qb3 {[%clk 0:02:47]}  Ra7 {[%clk 0:02:49]} 8. Be2 {[%clk 0:02:31]}  Nbd7 {[%clk 0:02:48]} 9. O-O {[%clk 0:02:31]}  Be7 {[%clk 0:02:49]} 10. Na4 {[%clk 0:02:28]}  O-O {[%clk 0:02:47]} 11. Nb6 {[%clk 0:02:24]}  Nxb6 {[%clk 0:02:47]} 12. cxb6 {[%clk 0:01:55]}  Ra8 {[%clk 0:02:47]} 13. Ne5 {[%clk 0:01:55]}  Nd7 {[%clk 0:02:42]} 14. Nxd7 {[%clk 0:01:54]}  Qxd7 {[%clk 0:02:42]} 15. Bd2 {[%clk 0:01:52]}  Rfc8 {[%clk 0:02:34]} 16. Rac1 {[%clk 0:01:48]}  c5 {[%clk 0:02:32]} 17. dxc5 {[%clk 0:01:48]}  Bxc5 {[%clk 0:02:29]} 18. Ba5 {[%clk 0:01:15]}  Qd6 {[%clk 0:02:21]} 19. Rc3 {[%clk 0:01:07]}  Rc6 {[%clk 0:02:16]} 20. Rfc1 {[%clk 0:01:03]}  Rac8 {[%clk 0:02:16]} 21. g4 {[%clk 0:00:45]}  Bg6 {[%clk 0:02:14]} 22. Bf3 {[%clk 0:00:33]}  d4 {[%clk 0:01:38]} 23. Bxc6 {[%clk 0:00:15]}  Rxc6 {[%clk 0:01:38]} 24. exd4 {[%clk 0:00:13]}  Qxd4 {[%clk 0:01:38]} 25. Rxc5 {[%clk 0:00:13]}  Rxc5 {[%clk 0:01:30]} 26. Rxc5 {[%clk 0:00:13]}  Qxc5 {[%clk 0:01:31]} 27. Qc3 {[%clk 0:00:10]}  Qf8 {[%clk 0:01:14]} 28. f3 {[%clk 0:00:09]}  h5 {[%clk 0:01:10]} 29. h4 {[%clk 0:00:08]}  hxg4 {[%clk 0:01:10]} 30. fxg4 {[%clk 0:00:09]}  Qd6 {[%clk 0:01:08]} 31. h5 {[%clk 0:00:08]}  Be4 {[%clk 0:01:08]} 32. Kf2 {[%clk 0:00:04]}  Qf4+ {[%clk 0:01:07]} 33. Ke2 {[%clk 0:00:03]}  Qxg4+ {[%clk 0:01:07]} 34. Ke3 {[%clk 0:00:04]}  Bc6 {[%clk 0:01:04]} 35. Qe5 {[%clk 0:00:03]}  f6 {[%clk 0:00:52]} 36. Qb8+ {[%clk 0:00:03]}  Kh7 {[%clk 0:00:52]} 37. Qf4 {[%clk 0:00:03]}  Qxh5 {[%clk 0:00:50]} 0-1


[Site "https://www.chess.com"]

[Event "Titled Tuesday Blitz November 29 Early 2022"]
[White "Ravot, Sylvain"]
[Black "Grigorov, Grigor"]
[WhiteFideId "627763"]
[BlackFideId "2907313"]
[WhiteElo "2195"]
[BlackElo "2510"]
[Result "0-1"]
[Round "04"]
[TimeControl "180+1"]
[Date "2022.11.30"]
[WhiteClock "0:00:23"]
[BlackClock "0:01:21"]

1. e4 {[%clk 0:02:55]}  c6 {[%clk 0:03:00]} 2. d4 {[%clk 0:02:52]}  d5 {[%clk 0:03:00]} 3. Nc3 {[%clk 0:02:48]}  dxe4 {[%clk 0:02:59]} 4. Nxe4 {[%clk 0:02:48]}  Nf6 {[%clk 0:02:59]} 5. Nxf6+ {[%clk 0:02:42]}  exf6 {[%clk 0:03:00]} 6. c3 {[%clk 0:02:39]}  Na6 {[%clk 0:03:00]} 7. Bd3 {[%clk 0:02:33]}  Nc7 {[%clk 0:02:58]} 8. Qc2 {[%clk 0:02:32]}  h5 {[%clk 0:02:56]} 9. Ne2 {[%clk 0:02:31]}  Bd6 {[%clk 0:02:54]} 10. Bf4 {[%clk 0:02:21]}  Nd5 {[%clk 0:02:47]} 11. Bxd6 {[%clk 0:02:20]}  Qxd6 {[%clk 0:02:48]} 12. O-O-O {[%clk 0:02:18]}  Kf8 {[%clk 0:02:47]} 13. Kb1 {[%clk 0:02:16]}  g6 {[%clk 0:02:46]} 14. a3 {[%clk 0:01:47]}  b5 {[%clk 0:02:40]} 15. c4 {[%clk 0:01:39]}  bxc4 {[%clk 0:02:40]} 16. Qxc4 {[%clk 0:01:36]}  Kg7 {[%clk 0:02:35]} 17. Rc1 {[%clk 0:01:34]}  Bd7 {[%clk 0:02:32]} 18. Qc5 {[%clk 0:01:27]}  Qb8 {[%clk 0:02:31]} 19. Nc3 {[%clk 0:01:10]}  Nf4 {[%clk 0:02:24]} 20. Be4 {[%clk 0:01:10]}  Ne6 {[%clk 0:02:24]} 21. Qc4 {[%clk 0:01:01]}  Qd6 {[%clk 0:02:19]} 22. Rhd1 {[%clk 0:01:00]}  Rab8 {[%clk 0:02:19]} 23. g3 {[%clk 0:00:58]}  Qxa3 {[%clk 0:02:17]} 24. Qa2 {[%clk 0:00:57]}  Qxa2+ {[%clk 0:01:58]} 25. Nxa2 {[%clk 0:00:55]}  Rb6 {[%clk 0:01:57]} 26. Ka1 {[%clk 0:00:44]}  Rhb8 {[%clk 0:01:57]} 27. b4 {[%clk 0:00:45]}  Ng5 {[%clk 0:01:51]} 28. Bg2 {[%clk 0:00:42]}  f5 {[%clk 0:01:48]} 29. Rd2 {[%clk 0:00:41]}  Ne4 {[%clk 0:01:46]} 30. Rdc2 {[%clk 0:00:40]}  Ra8 {[%clk 0:01:35]} 31. Re1 {[%clk 0:00:37]}  a5 {[%clk 0:01:31]} 32. bxa5 {[%clk 0:00:33]}  Rxa5 {[%clk 0:01:32]} 33. Bxe4 {[%clk 0:00:33]}  fxe4 {[%clk 0:01:31]} 34. Rxe4 {[%clk 0:00:34]}  Bf5 {[%clk 0:01:31]} 35. Ree2 {[%clk 0:00:34]}  Bxc2 {[%clk 0:01:30]} 36. Rxc2 {[%clk 0:00:35]}  Ra4 {[%clk 0:01:28]} 37. Rd2 {[%clk 0:00:29]}  Kf6 {[%clk 0:01:20]} 38. f4 {[%clk 0:00:23]}  Ke6 {[%clk 0:01:21]} 0-1


[Site "https://www.chess.com"]

[Event "Titled Tuesday Blitz November 29 Early 2022"]
[White "Reprintsev, Alexander"]
[Black "Palacio,Igor Da Paz"]
[WhiteFideId "14100541"]
[BlackFideId "2121140"]
[WhiteElo "2230"]
[BlackElo "2126"]
[Result "1-0"]
[Round "04"]
[TimeControl "180+1"]
[Date "2022.11.30"]
[WhiteClock "0:01:27"]
[BlackClock "0:00:01"]

1. e4 {[%clk 0:02:45]}  d6 {[%clk 0:02:59]} 2. d4 {[%clk 0:02:45]}  Nf6 {[%clk 0:02:59]} 3. Nc3 {[%clk 0:02:45]}  g6 {[%clk 0:02:59]} 4. h4 {[%clk 0:02:44]}  h5 {[%clk 0:02:53]} 5. Nf3 {[%clk 0:02:43]}  Bg4 {[%clk 0:02:44]} 6. Be2 {[%clk 0:02:43]}  Nc6 {[%clk 0:02:28]} 7. d5 {[%clk 0:02:40]}  Nb8 {[%clk 0:02:14]} 8. Ng5 {[%clk 0:02:39]}  Bxe2 {[%clk 0:02:10]} 9. Qxe2 {[%clk 0:02:40]}  Nbd7 {[%clk 0:02:09]} 10. Be3 {[%clk 0:02:37]}  c6 {[%clk 0:02:05]} 11. O-O-O {[%clk 0:02:34]}  c5 {[%clk 0:02:01]} 12. f4 {[%clk 0:02:34]}  Ng4 {[%clk 0:01:58]} 13. e5 {[%clk 0:02:23]}  dxe5 {[%clk 0:01:51]} 14. fxe5 {[%clk 0:02:23]}  Ngxe5 {[%clk 0:01:45]} 15. Bxc5 {[%clk 0:02:21]}  Bg7 {[%clk 0:01:34]} 16. Bd4 {[%clk 0:02:15]}  O-O {[%clk 0:01:22]} 17. Rhe1 {[%clk 0:02:09]}  Rc8 {[%clk 0:01:14]} 18. Nf3 {[%clk 0:02:03]}  Nxf3 {[%clk 0:01:07]} 19. gxf3 {[%clk 0:02:04]}  Bxd4 {[%clk 0:01:07]} 20. Rxd4 {[%clk 0:02:04]}  Re8 {[%clk 0:01:05]} 21. Re4 {[%clk 0:02:03]}  Kf8 {[%clk 0:00:39]} 22. d6 {[%clk 0:01:28]}  exd6 {[%clk 0:00:28]} 23. Rxe8+ {[%clk 0:01:27]}  Qxe8 {[%clk 0:00:28]} 24. Qd2 {[%clk 0:01:27]}  Qd8 {[%clk 0:00:21]} 25. Qxd6+ {[%clk 0:01:27]}  Kg8 {[%clk 0:00:15]} 26. Rd1 {[%clk 0:01:28]}  Rc7 {[%clk 0:00:07]} 27. Nd5 {[%clk 0:01:28]}  Qb8 {[%clk 0:00:01]} 28. Nxc7 {[%clk 0:01:27]} 1-0


[Site "https://www.chess.com"]

[Event "Titled Tuesday Blitz November 29 Early 2022"]
[White "Roque Sola, Gisela"]
[Black "Guzman, Christopher"]
[WhiteFideId "5120241"]
[BlackFideId "6405096"]
[WhiteElo "1961"]
[BlackElo "2272"]
[Result "1/2-1/2"]
[Round "04"]
[TimeControl "180+1"]
[Date "2022.11.30"]
[WhiteClock "0:00:23"]
[BlackClock "0:01:19"]

1. e4 {[%clk 0:03:00]}  c6 {[%clk 0:02:59]} 2. d4 {[%clk 0:03:00]}  d5 {[%clk 0:02:59]} 3. e5 {[%clk 0:03:00]}  Bf5 {[%clk 0:02:59]} 4. c4 {[%clk 0:02:59]}  e6 {[%clk 0:02:59]} 5. Nc3 {[%clk 0:02:59]}  Ne7 {[%clk 0:02:59]} 6. h4 {[%clk 0:02:56]}  h5 {[%clk 0:02:58]} 7. Bd3 {[%clk 0:02:43]}  Nd7 {[%clk 0:02:57]} 8. Nge2 {[%clk 0:02:33]}  dxc4 {[%clk 0:02:44]} 9. Bxc4 {[%clk 0:02:32]}  Nb6 {[%clk 0:02:44]} 10. Bd3 {[%clk 0:02:31]}  Ned5 {[%clk 0:02:44]} 11. Bxf5 {[%clk 0:02:30]}  exf5 {[%clk 0:02:43]} 12. Ng3 {[%clk 0:02:26]}  g6 {[%clk 0:02:39]} 13. Bg5 {[%clk 0:02:24]}  Be7 {[%clk 0:02:40]} 14. Bxe7 {[%clk 0:02:14]}  Qxe7 {[%clk 0:02:41]} 15. Qf3 {[%clk 0:01:58]}  O-O-O {[%clk 0:02:38]} 16. Rc1 {[%clk 0:01:53]}  Kb8 {[%clk 0:02:37]} 17. Nge2 {[%clk 0:01:49]}  Rhe8 {[%clk 0:02:30]} 18. g3 {[%clk 0:01:46]}  f6 {[%clk 0:02:29]} 19. exf6 {[%clk 0:01:41]}  Nxf6 {[%clk 0:02:30]} 20. O-O {[%clk 0:01:39]}  Ne4 {[%clk 0:02:24]} 21. Nxe4 {[%clk 0:01:34]}  Qxe4 {[%clk 0:02:23]} 22. Qxe4 {[%clk 0:01:23]}  Rxe4 {[%clk 0:02:24]} 23. Nf4 {[%clk 0:01:24]}  Rdxd4 {[%clk 0:02:01]} 24. Rfd1 {[%clk 0:01:13]}  Rxf4 {[%clk 0:01:56]} 25. gxf4 {[%clk 0:01:12]}  Rxf4 {[%clk 0:01:57]} 26. Rd6 {[%clk 0:01:08]}  Rg4+ {[%clk 0:01:57]} 27. Kf1 {[%clk 0:01:08]}  Kc7 {[%clk 0:01:57]} 28. Rcd1 {[%clk 0:01:07]}  Nd5 {[%clk 0:01:57]} 29. Re6 {[%clk 0:01:00]}  Rxh4 {[%clk 0:01:54]} 30. Rxg6 {[%clk 0:00:57]}  Kb6 {[%clk 0:01:53]} 31. Rg5 {[%clk 0:00:55]}  Nf4 {[%clk 0:01:52]} 32. Ke1 {[%clk 0:00:51]}  Rh1+ {[%clk 0:01:45]} 33. Kd2 {[%clk 0:00:51]}  Rh2 {[%clk 0:01:45]} 34. Ke3 {[%clk 0:00:47]}  Nd5+ {[%clk 0:01:43]} 35. Kf3 {[%clk 0:00:47]}  f4 {[%clk 0:01:42]} 36. Rdxd5 {[%clk 0:00:43]}  cxd5 {[%clk 0:01:42]} 37. Rxd5 {[%clk 0:00:44]}  Rh1 {[%clk 0:01:34]} 38. Kxf4 {[%clk 0:00:42]}  Kc6 {[%clk 0:01:32]} 39. Rg5 {[%clk 0:00:39]}  Rb1 {[%clk 0:01:30]} 40. b3 {[%clk 0:00:37]}  Rb2 {[%clk 0:01:30]} 41. f3 {[%clk 0:00:37]}  Rxa2 {[%clk 0:01:30]} 42. Rxh5 {[%clk 0:00:37]}  Rb2 {[%clk 0:01:30]} 43. Rh6+ {[%clk 0:00:37]}  Kb5 {[%clk 0:01:29]} 44. Rh7 {[%clk 0:00:36]}  Ka6 {[%clk 0:01:29]} 45. Ke5 {[%clk 0:00:35]}  Rxb3 {[%clk 0:01:29]} 46. f4 {[%clk 0:00:36]}  Rf3 {[%clk 0:01:28]} 47. f5 {[%clk 0:00:37]}  b5 {[%clk 0:01:28]} 48. f6 {[%clk 0:00:36]}  b4 {[%clk 0:01:28]} 49. f7 {[%clk 0:00:34]}  b3 {[%clk 0:01:22]} 50. Rh6+ {[%clk 0:00:34]}  Ka5 {[%clk 0:01:22]} 51. Rf6 {[%clk 0:00:35]}  Rxf6 {[%clk 0:01:22]} 52. Kxf6 {[%clk 0:00:35]}  b2 {[%clk 0:01:23]} 53. f8=Q {[%clk 0:00:33]}  b1=Q {[%clk 0:01:24]} 54. Qc5+ {[%clk 0:00:32]}  Ka6 {[%clk 0:01:23]} 55. Qa3+ {[%clk 0:00:30]}  Kb7 {[%clk 0:01:21]} 56. Ke5 {[%clk 0:00:26]}  Qb5+ {[%clk 0:01:20]} 57. Kd4 {[%clk 0:00:26]}  a5 {[%clk 0:01:18]} 58. Qe7+ {[%clk 0:00:25]}  Ka6 {[%clk 0:01:17]} 59. Qd6+ {[%clk 0:00:24]}  Ka7 {[%clk 0:01:15]} 60. Qc7+ {[%clk 0:00:24]}  Ka8 {[%clk 0:01:14]} 61. Qc8+ {[%clk 0:00:24]}  Ka7 {[%clk 0:01:15]} 62. Qc7+ {[%clk 0:00:24]}  Ka6 {[%clk 0:01:15]} 63. Qd6+ {[%clk 0:00:24]}  Kb7 {[%clk 0:01:15]} 64. Kc3 {[%clk 0:00:23]}  a4 {[%clk 0:01:11]} 65. Qe7+ {[%clk 0:00:21]}  Ka6 {[%clk 0:01:11]} 66. Qd6+ {[%clk 0:00:21]}  Ka5 {[%clk 0:01:11]} 67. Qc7+ {[%clk 0:00:21]}  Ka6 {[%clk 0:01:11]} 68. Qd6+ {[%clk 0:00:21]}  Kb7 {[%clk 0:01:11]} 69. Qe7+ {[%clk 0:00:21]}  Kc8 {[%clk 0:01:11]} 70. Qe6+ {[%clk 0:00:21]}  Kd8 {[%clk 0:01:11]} 71. Qd6+ {[%clk 0:00:21]}  Ke8 {[%clk 0:01:11]} 72. Qe6+ {[%clk 0:00:21]}  Kf8 {[%clk 0:01:11]} 73. Qf6+ {[%clk 0:00:22]}  Ke8 {[%clk 0:01:11]} 74. Qe6+ {[%clk 0:00:22]}  Kd8 {[%clk 0:01:12]} 75. Qd6+ {[%clk 0:00:22]}  Kc8 {[%clk 0:01:12]} 76. Qe6+ {[%clk 0:00:23]}  Kc7 {[%clk 0:01:12]} 77. Qe7+ {[%clk 0:00:22]}  Kc6 {[%clk 0:01:12]} 78. Qe8+ {[%clk 0:00:22]}  Kc5 {[%clk 0:01:13]} 79. Qxb5+ {[%clk 0:00:22]}  Kxb5 {[%clk 0:01:14]} 80. Kb2 {[%clk 0:00:22]}  Kb4 {[%clk 0:01:14]} 81. Ka1 {[%clk 0:00:22]}  a3 {[%clk 0:01:15]} 82. Ka2 {[%clk 0:00:22]}  Ka4 {[%clk 0:01:16]} 83. Ka1 {[%clk 0:00:22]}  Kb3 {[%clk 0:01:17]} 84. Kb1 {[%clk 0:00:22]}  a2+ {[%clk 0:01:18]} 85. Ka1 {[%clk 0:00:23]}  Ka3 {[%clk 0:01:19]} 1/2-1/2


[Site "https://www.chess.com"]

[Event "Titled Tuesday Blitz November 29 Early 2022"]
[White "Sai Han Thiha"]
[Black "De Souza, Cristiano Gomes"]
[WhiteFideId "13012290"]
[BlackFideId "2151758"]
[WhiteElo "2023"]
[BlackElo "2068"]
[Result "1-0"]
[Round "04"]
[TimeControl "180+1"]
[Date "2022.11.30"]
[WhiteClock "0:00:07"]
[BlackClock "0:00:06"]

1. d4 {[%clk 0:03:00]}  Nf6 {[%clk 0:02:57]} 2. c4 {[%clk 0:03:01]}  g6 {[%clk 0:02:56]} 3. Nc3 {[%clk 0:03:01]}  Bg7 {[%clk 0:02:56]} 4. e4 {[%clk 0:03:01]}  d6 {[%clk 0:02:57]} 5. Nf3 {[%clk 0:03:02]}  O-O {[%clk 0:02:57]} 6. Be2 {[%clk 0:03:02]}  e5 {[%clk 0:02:57]} 7. Be3 {[%clk 0:03:03]}  Ng4 {[%clk 0:02:53]} 8. Bg5 {[%clk 0:03:03]}  f6 {[%clk 0:02:53]} 9. Bc1 {[%clk 0:03:03]}  Nc6 {[%clk 0:02:51]} 10. O-O {[%clk 0:03:02]}  Nh6 {[%clk 0:02:49]} 11. c5 {[%clk 0:02:50]}  exd4 {[%clk 0:02:44]} 12. Nxd4 {[%clk 0:02:49]}  dxc5 {[%clk 0:02:31]} 13. Nxc6 {[%clk 0:02:22]}  bxc6 {[%clk 0:02:30]} 14. Bc4+ {[%clk 0:02:22]}  Kh8 {[%clk 0:02:29]} 15. Bf4 {[%clk 0:02:23]}  Qe7 {[%clk 0:02:26]} 16. Qa4 {[%clk 0:02:09]}  Bd7 {[%clk 0:02:18]} 17. Bxc7 {[%clk 0:02:04]}  Rfc8 {[%clk 0:02:15]} 18. Bf4 {[%clk 0:02:01]}  Ng4 {[%clk 0:02:13]} 19. Rad1 {[%clk 0:01:50]}  Ne5 {[%clk 0:02:12]} 20. Be2 {[%clk 0:01:41]}  Be8 {[%clk 0:02:09]} 21. Be3 {[%clk 0:01:36]}  Bf7 {[%clk 0:02:02]} 22. f4 {[%clk 0:01:36]}  Nd7 {[%clk 0:02:00]} 23. Qa3 {[%clk 0:01:29]}  Bf8 {[%clk 0:01:59]} 24. Rfe1 {[%clk 0:01:17]}  Nb6 {[%clk 0:01:59]} 25. Qa6 {[%clk 0:01:07]}  Rd8 {[%clk 0:01:49]} 26. b3 {[%clk 0:00:54]}  Rxd1 {[%clk 0:01:45]} 27. Rxd1 {[%clk 0:00:55]}  Qc7 {[%clk 0:01:21]} 28. Na4 {[%clk 0:00:39]}  Nxa4 {[%clk 0:01:17]} 29. Qxa4 {[%clk 0:00:40]}  Bd6 {[%clk 0:01:15]} 30. g3 {[%clk 0:00:36]}  Re8 {[%clk 0:01:11]} 31. Bf3 {[%clk 0:00:31]}  Kg7 {[%clk 0:01:03]} 32. Bf2 {[%clk 0:00:30]}  Re7 {[%clk 0:00:55]} 33. Kg2 {[%clk 0:00:29]}  Be8 {[%clk 0:00:53]} 34. Qa3 {[%clk 0:00:28]}  h5 {[%clk 0:00:46]} 35. h4 {[%clk 0:00:21]}  Rd7 {[%clk 0:00:37]} 36. Qa6 {[%clk 0:00:17]}  Bf7 {[%clk 0:00:34]} 37. Qd3 {[%clk 0:00:14]}  Be6 {[%clk 0:00:32]} 38. Qc3 {[%clk 0:00:15]}  Be7 {[%clk 0:00:28]} 39. Bxc5 {[%clk 0:00:12]}  Rxd1 {[%clk 0:00:26]} 40. Bxd1 {[%clk 0:00:10]}  Bxc5 {[%clk 0:00:24]} 41. Qxc5 {[%clk 0:00:11]}  Qd7 {[%clk 0:00:24]} 42. Qc2 {[%clk 0:00:11]}  Bh3+ {[%clk 0:00:23]} 43. Kh2 {[%clk 0:00:11]}  Bg4 {[%clk 0:00:19]} 44. Bxg4 {[%clk 0:00:11]}  Qxg4 {[%clk 0:00:19]} 45. Qd3 {[%clk 0:00:08]}  g5 {[%clk 0:00:18]} 46. fxg5 {[%clk 0:00:08]}  fxg5 {[%clk 0:00:18]} 47. Qc3+ {[%clk 0:00:06]}  Kh7 {[%clk 0:00:17]} 48. hxg5 {[%clk 0:00:06]}  h4 {[%clk 0:00:17]} 49. gxh4 {[%clk 0:00:05]}  Qe2+ {[%clk 0:00:16]} 50. Kh3 {[%clk 0:00:05]}  Qxe4 {[%clk 0:00:16]} 51. Qg3 {[%clk 0:00:04]}  Kg6 {[%clk 0:00:15]} 52. Qg4 {[%clk 0:00:03]}  Qh1+ {[%clk 0:00:15]} 53. Kg3 {[%clk 0:00:03]}  Qg1+ {[%clk 0:00:15]} 54. Kf4 {[%clk 0:00:04]}  Qc1+ {[%clk 0:00:13]} 55. Ke5 {[%clk 0:00:04]}  Qc5+ {[%clk 0:00:09]} 56. Ke6 {[%clk 0:00:04]}  Qd5+ {[%clk 0:00:09]} 57. Ke7 {[%clk 0:00:04]}  Kg7 {[%clk 0:00:07]} 58. Qd7 {[%clk 0:00:04]}  Qe5+ {[%clk 0:00:06]} 59. Kd8+ {[%clk 0:00:04]}  Kg6 {[%clk 0:00:05]} 60. Qe8+ {[%clk 0:00:04]}  Kf5 {[%clk 0:00:05]} 61. Qxe5+ {[%clk 0:00:04]}  Kxe5 {[%clk 0:00:05]} 62. g6 {[%clk 0:00:05]}  Kf6 {[%clk 0:00:04]} 63. h5 {[%clk 0:00:06]}  Kg7 {[%clk 0:00:05]} 64. Kc7 {[%clk 0:00:07]}  c5 {[%clk 0:00:05]} 65. Kb7 {[%clk 0:00:07]}  a5 {[%clk 0:00:06]} 66. Kb6 {[%clk 0:00:07]}  a4 {[%clk 0:00:06]} 67. Kxc5 {[%clk 0:00:07]} 1-0


[Site "https://www.chess.com"]

[Event "Titled Tuesday Blitz November 29 Early 2022"]
[White "Salman, Pavel"]
[Black "Grapsa, Georgia"]
[WhiteFideId "24153753"]
[BlackFideId "4206436"]
[WhiteElo "2187"]
[BlackElo "1877"]
[Result "1-0"]
[Round "04"]
[TimeControl "180+1"]
[Date "2022.11.30"]
[WhiteClock "0:01:16"]
[BlackClock "0:00:41"]

1. Nf3 {[%clk 0:03:00]}  d5 {[%clk 0:02:56]} 2. g3 {[%clk 0:03:00]}  c5 {[%clk 0:02:53]} 3. Bg2 {[%clk 0:03:00]}  Nc6 {[%clk 0:02:54]} 4. O-O {[%clk 0:03:01]}  e6 {[%clk 0:02:51]} 5. d3 {[%clk 0:03:02]}  Nf6 {[%clk 0:02:50]} 6. Nbd2 {[%clk 0:03:03]}  Be7 {[%clk 0:02:49]} 7. e4 {[%clk 0:03:03]}  b6 {[%clk 0:02:46]} 8. Re1 {[%clk 0:03:03]}  Bb7 {[%clk 0:02:46]} 9. c3 {[%clk 0:03:00]}  dxe4 {[%clk 0:02:41]} 10. dxe4 {[%clk 0:02:59]}  O-O {[%clk 0:02:23]} 11. Qc2 {[%clk 0:02:59]}  Nd7 {[%clk 0:02:19]} 12. Nc4 {[%clk 0:02:55]}  e5 {[%clk 0:02:17]} 13. a4 {[%clk 0:02:52]}  f6 {[%clk 0:02:09]} 14. h4 {[%clk 0:02:52]}  Re8 {[%clk 0:02:05]} 15. Bd2 {[%clk 0:02:50]}  Qc7 {[%clk 0:02:04]} 16. Rad1 {[%clk 0:02:50]}  Nf8 {[%clk 0:02:04]} 17. h5 {[%clk 0:02:50]}  Rad8 {[%clk 0:02:03]} 18. Nh4 {[%clk 0:02:45]}  g6 {[%clk 0:02:00]} 19. hxg6 {[%clk 0:02:43]}  hxg6 {[%clk 0:02:01]} 20. Ne3 {[%clk 0:02:39]}  Nb8 {[%clk 0:01:47]} 21. Qb3+ {[%clk 0:02:16]}  Kg7 {[%clk 0:01:32]} 22. Nef5+ {[%clk 0:02:09]}  gxf5 {[%clk 0:01:21]} 23. Nxf5+ {[%clk 0:02:10]}  Kh8 {[%clk 0:01:18]} 24. Qf7 {[%clk 0:02:07]}  Bd6 {[%clk 0:01:03]} 25. Qxf6+ {[%clk 0:02:03]}  Kh7 {[%clk 0:01:01]} 26. g4 {[%clk 0:01:28]}  Re6 {[%clk 0:00:57]} 27. Qh4+ {[%clk 0:01:21]}  Kg8 {[%clk 0:00:54]} 28. Re3 {[%clk 0:01:19]}  Qh7 {[%clk 0:00:41]} 29. Qxd8 {[%clk 0:01:16]} 1-0


[Site "https://www.chess.com"]

[Event "Titled Tuesday Blitz November 29 Early 2022"]
[White "Samaganova, Aleksandra"]
[Black "Gabdrakhmanov, Azat"]
[WhiteFideId "13800221"]
[BlackFideId "34189197"]
[WhiteElo "1864"]
[BlackElo "2254"]
[Result "0-1"]
[Round "04"]
[TimeControl "180+1"]
[Date "2022.11.30"]
[WhiteClock "0:00:10"]
[BlackClock "0:00:08"]

1. c4 {[%clk 0:03:00]}  c5 {[%clk 0:02:58]} 2. Nc3 {[%clk 0:02:58]}  Nf6 {[%clk 0:02:58]} 3. Nf3 {[%clk 0:02:58]}  b6 {[%clk 0:02:58]} 4. e3 {[%clk 0:02:58]}  Bb7 {[%clk 0:02:58]} 5. d4 {[%clk 0:02:58]}  e6 {[%clk 0:02:59]} 6. d5 {[%clk 0:02:57]}  exd5 {[%clk 0:02:59]} 7. cxd5 {[%clk 0:02:58]}  d6 {[%clk 0:02:59]} 8. e4 {[%clk 0:02:54]}  Be7 {[%clk 0:02:58]} 9. Bd3 {[%clk 0:02:53]}  O-O {[%clk 0:02:57]} 10. O-O {[%clk 0:02:53]}  Nbd7 {[%clk 0:02:58]} 11. h3 {[%clk 0:02:52]}  Re8 {[%clk 0:02:57]} 12. Bf4 {[%clk 0:02:52]}  Bf8 {[%clk 0:02:56]} 13. Re1 {[%clk 0:02:49]}  a6 {[%clk 0:02:55]} 14. a4 {[%clk 0:02:47]}  Ne5 {[%clk 0:02:55]} 15. Nxe5 {[%clk 0:02:35]}  dxe5 {[%clk 0:02:55]} 16. Bg5 {[%clk 0:02:34]}  h6 {[%clk 0:02:53]} 17. Bh4 {[%clk 0:02:29]}  Qd6 {[%clk 0:02:38]} 18. Qd2 {[%clk 0:02:08]}  Rac8 {[%clk 0:02:28]} 19. b3 {[%clk 0:02:03]}  Nh5 {[%clk 0:02:24]} 20. Ne2 {[%clk 0:01:55]}  Qg6 {[%clk 0:02:15]} 21. Rac1 {[%clk 0:01:35]}  Bd6 {[%clk 0:01:57]} 22. f3 {[%clk 0:01:26]}  Rc7 {[%clk 0:01:41]} 23. Bf2 {[%clk 0:01:17]}  Nf6 {[%clk 0:01:28]} 24. b4 {[%clk 0:01:14]}  cxb4 {[%clk 0:01:11]} 25. Rxc7 {[%clk 0:00:55]}  Bxc7 {[%clk 0:01:12]} 26. Qxb4 {[%clk 0:00:55]}  Nd7 {[%clk 0:00:38]} 27. Rc1 {[%clk 0:00:52]}  Bd6 {[%clk 0:00:37]} 28. Qb2 {[%clk 0:00:43]}  Nc5 {[%clk 0:00:35]} 29. Bc2 {[%clk 0:00:39]}  Bf8 {[%clk 0:00:28]} 30. Rb1 {[%clk 0:00:38]}  Nd7 {[%clk 0:00:20]} 31. Kh1 {[%clk 0:00:34]}  Rc8 {[%clk 0:00:20]} 32. Bd3 {[%clk 0:00:33]}  Bxd5 {[%clk 0:00:16]} 33. Bxa6 {[%clk 0:00:30]}  Ra8 {[%clk 0:00:14]} 34. Bb5 {[%clk 0:00:26]}  Be6 {[%clk 0:00:14]} 35. Nc3 {[%clk 0:00:21]}  Bc5 {[%clk 0:00:13]} 36. Bxd7 {[%clk 0:00:15]}  Bxd7 {[%clk 0:00:12]} 37. Bxc5 {[%clk 0:00:14]}  bxc5 {[%clk 0:00:12]} 38. Qb7 {[%clk 0:00:13]}  Bc6 {[%clk 0:00:10]} 39. Qb6 {[%clk 0:00:11]}  Bxa4 {[%clk 0:00:07]} 40. Nd5 {[%clk 0:00:09]}  Qxb6 {[%clk 0:00:05]} 41. Rxb6 {[%clk 0:00:08]}  Be8 {[%clk 0:00:05]} 42. Rc6 {[%clk 0:00:05]}  Bxc6 {[%clk 0:00:05]} 43. Ne7+ {[%clk 0:00:05]}  Kf8 {[%clk 0:00:05]} 44. Nxc6 {[%clk 0:00:06]}  Rc8 {[%clk 0:00:06]} 45. Nxe5 {[%clk 0:00:06]}  c4 {[%clk 0:00:06]} 46. Ng4 {[%clk 0:00:05]}  c3 {[%clk 0:00:06]} 47. Ne3 {[%clk 0:00:06]}  c2 {[%clk 0:00:06]} 48. Nxc2 {[%clk 0:00:07]}  Rxc2 {[%clk 0:00:06]} 49. Kh2 {[%clk 0:00:08]}  Rb2 {[%clk 0:00:07]} 50. h4 {[%clk 0:00:09]}  Ra2 {[%clk 0:00:08]} 51. h5 {[%clk 0:00:10]}  Ra5 {[%clk 0:00:08]} 0-1


[Site "https://www.chess.com"]